[Event "Mitropa Cup Women 2022"]
[Site "Corte"]
[Date "2022.05.03"]
[Round "4.8"]
[White "Leconte, Maria"]
[Black "Zhuang, Yongzhe"]
[Result "1/2-1/2"]
[ECO "C55"]
[WhiteElo "2211"]
[BlackElo "1701"]
[Annotator "TA"]
[PlyCount "114"]
[EventDate "2022.04.30"]
[EventType "team-tourn"]
[EventCountry "FRA"]
[SourceTitle "playchess.com"]
[Source "ChessBase"]
[SourceQuality "1"]
[WhiteTeam "France"]
[BlackTeam "Switzerland"]
[WhiteTeamCountry "FRA"]
[BlackTeamCountry "SUI"]
[TimeControl "40/5400+30:1800+30"]

{[%evp 18,114,7,0,12,0,1,0,8,11,14,15,6,0,12,0,-2,-33,0,-53,-65,-61,-61,-61,1,-15,0,-14,-9,-18,0,0,-10,0,0,-56,-58,-58,-54,-58,-7,-66,-91,-93,0,-12,0,0,0,0,12,0,0,0,19,0,58,58,58,43,110,125,143,147,146,130,100,123,238,134,112,34,75,0,31,0,0,0,0,0,0,0,0,0,0,0,0,0,0,0,0,0,0,0,0,0,0,0,0]} 1. e4 {[%emt 0:00:05]} e5 {[%emt 0:00:14]} 2. Bc4 {[%emt 0:00:07]} Nf6 {[%emt 0:01:19]} 3. d3 {[%emt 0:00:37]} Nc6 {[%emt 0:06:39]} 4. Nf3 {[%emt 0:02:49]} h6 {[%emt 0:00:45]} 5. a3 {[%emt 0:04:40]} a6 {[%emt 0:03:11]} 6. Nc3 {[%emt 0:06:47]} Bc5 {[%emt 0:00:31]} 7. Be3 {[%emt 0:00:17]} d6 {[%emt 0:05:28]} 8. b4 {[%emt 0:07:56]} Ba7 {[%emt 0:03:05]} 9. h3 {[%emt 0:16:27]} O-O {[%emt 0:16:37]} 10. O-O {[%emt 0:01:31]} Nd4 {[%emt 0:03:19] C50: Hungarian Defence and Giuoco Pianissimo.} 11. Nd5 {[%emt 0:14:37] [#]} Nxd5 $146 {[%emt 0:15:49]} ({Predecessor:} 11... Ne6 12. c3 Nh7 13. Bxa7 Rxa7 14. Qd2 c6 15. Ne3 Nf4 16. Kh2 d5 17. exd5 cxd5 18. Bb3 {0-1 (43) Cetkovic,S (2101)-Naumkin,I (2415) Cutro 2006}) 12. Bxd5 {[%emt 0:01:40]} c6 {[%emt 0:01:18]} 13. Ba2 {[%emt 0:01:45]} Ne6 {[%emt 0:01:14]} 14. Bxa7 {[%emt 0:05:06]} Rxa7 {[%emt 0:00:13]} 15. d4 {[%emt 0:00:08]} exd4 {[%emt 0:05:30]} 16. Nxd4 {[%emt 0:00:05]} Nf4 {[%emt 0:00:53][%cal Oc8h3] White must now prevent ...Bxh3!} 17. Nf5 {[%emt 0:11:34]} Qg5 {[%emt 0:05:37][%csl Gf4][%cal Rg5g2] [#]} (17... Bxf5 $5 18. exf5 Re8 $15) 18. Qg4 {[%emt 0:01:27]} ({White should play} 18. g3 $1 $11) 18... Bxf5 $15 {[%emt 0:03:42]} 19. exf5 {[%emt 0:00:49]} a5 {[%emt 0:03:13]} 20. b5 {[%emt 0:15:18]} cxb5 {[%emt 0:04:01]} (20... Qxg4 $15 21. hxg4 Ne2+ 22. Kh2 Nc3) 21. Rfd1 {[%emt 0:00:08]} Ra6 {[%emt 0:00:42]} 22. Kf1 {[%emt 0:00:38]} (22. Bd5 $5 {[%cal Rd5f3]}) 22... Rc6 $40 {[%emt 0:02:59][%mdl 128] Black attacks.} 23. g3 {[%emt 0:01:16]} Nh5 {[%emt 0:00:53] next ...Qxg4 is good for Black.} 24. Qxg5 {[%emt 0:00:49]} hxg5 {[%emt 0:00:07]} 25. Rd5 {[%emt 0:00:38]} Rc5 {[%emt 0:03:32]} 26. Rxd6 {[%emt 0:00:31]} (26. Rb1 $1 $11) 26... Rxf5 {[%emt 0:01:05]} 27. Kg1 {[%emt 0:01:34]} Nf6 $1 {[%emt 0:00:43][%cal Of5f2] Inhibits Bd5.} 28. Re1 {[%emt 0:00:15]} Rc5 {[%emt 0:00:30]} (28... Rf3 $1 $15 29. Rd3 Rxd3 30. cxd3 Re8) 29. Re2 {[%emt 0:01:47]} (29. Rb6 $1 $11) 29... Rc3 {[%emt 0:00:31]} 30. Rd3 {[%emt 0:02:48]} Rc5 {[%emt 0:03:51]} (30... Rxd3 $17 31. cxd3 Rd8) 31. Kg2 {[%emt 0:00:59]} Rfc8 {[%emt 0:01:31]} 32. Re7 $1 {[%emt 0:00:09][%csl LRb7,LRf7]} R5c7 {[%emt 0:01:41]} 33. Bxf7+ {[%emt 0:00:06]} Kh7 {[%emt 0:00:06]} 34. Rxc7 {[%emt 0:00:12]} Rxc7 $11 {[%emt 0:00:07][%mdl 4096] Endgame KRB-KRN} 35. Bd5 {[%emt 0:00:19]} b6 {[%emt 0:00:35]} 36. Be6 {[%emt 0:00:46]} Kg6 {[%emt 0:02:32]} (36... Rxc2 $11 37. Rb3 Rc5) 37. Rd6 $14 {[%emt 0:00:15]} Rxc2 {[%emt 0:01:01]} 38. Rxb6 {[%emt 0:00:09]} Rb2 {[%emt 0:00:30]} (38... Rc5 $14) 39. a4 $16 {[%emt 0:00:41]} b4 {[%emt 0:01:06]} 40. Rb5 {[%emt 0:00:13]} Re2 {[%emt 0:01:30]} 41. Bc4 {[%emt 0:05:32]} Rd2 {[%emt 0:03:17]} 42. Rxa5 {[%emt 0:07:01]} Ne4 {[%emt 0:01:32]} (42... g4 $16 {was worth a try.}) 43. Rd5 {[%emt 0:00:25]} ({White should try} 43. Kf3 $18 Rd4 44. Ba2) 43... Rxf2+ {[%emt 0:17:22]} 44. Kg1 {[%emt 0:00:13] [#] Bd3 is the strong threat.} Rf3 {[%emt 0:00:56]} 45. Bd3 {[%emt 0:09:06]} ({Better is} 45. Rd3 $16 Rf5 46. Rb3) 45... Rxg3+ {[%emt 0:00:20]} 46. Kh2 {[%emt 0:01:06]} (46. Kf1 $5 {[%cal Rd3e4]} Re3 47. a5 $14) 46... Re3 {[%emt 0:00:16] The position is equal.} 47. Rd4 {[%emt 0:08:33]} Kf5 {[%emt 0:00:14]} 48. a5 {[%emt 0:00:49] Hoping for a6.} b3 $1 {[%emt 0:03:09]} 49. a6 {[%emt 0:01:08] Threatens to win with a7.} b2 $1 {[%emt 0:00:14][%cal Oe3d3] And now ...Rxd3! would win.} 50. a7 {[%emt 0:00:56]} Rxd3 $1 {[%emt 0:00:26]} 51. Rxd3 {[%emt 0:00:10] aiming for Rb3.} b1=Q {[%emt 0:00:16] Inhibits Rb3.} 52. Rf3+ {[%emt 0:00:12]} Kg6 {[%emt 0:01:14]} 53. a8=Q {[%emt 0:00:06]} Qc2+ {[%emt 0:00:19]} 54. Kg1 {[%emt 0:00:41]} Qc5+ {[%emt 0:01:24]} 55. Kg2 {[%emt 0:00:18] Dancing on a razor blade.} Qc2+ {[%emt 0:00:13]} 56. Kg1 {[%emt 0:00:05]} Qc5+ {[%emt 0:00:48]} 57. Kg2 {[%emt 0:00:04]} Qc2+ {Weighted Error Value: White=0.11 (very precise) /Black=0.16 (very precise)} 1/2-1/2

[Event "Mitropa Cup Women 2022"]
[Site "Corte"]
[Date "2022.05.03"]
[Round "4.8"]
[White "Rozman, Monika"]
[Black "Buchholz, Maja"]
[Result "1-0"]
[ECO "C06"]
[WhiteElo "2117"]
[BlackElo "1945"]
[Annotator "TA"]
[PlyCount "91"]
[EventDate "2022.04.30"]
[EventType "team-tourn"]
[EventCountry "FRA"]
[SourceTitle "playchess.com"]
[Source "ChessBase"]
[SourceQuality "1"]
[WhiteTeam "Slovenia"]
[BlackTeam "Germany"]
[WhiteTeamCountry "SLO"]
[BlackTeamCountry "GER"]
[TimeControl "40/5400+30:1800+30"]

{[%evp 28,91,11,11,14,11,11,11,13,13,14,8,4,13,23,20,17,23,220,199,308,195,189,193,193,194,190,205,216,192,607,595,618,615,620,621,612,615,642,591,722,720,824,821,1025,802,1159,1175,2312,2307,1091,812,1820,1178,1166,1172,1745,1672,6131,6287,6057,6008,5631,5679,5460,5289]} 1. e4 {[%emt 0:00:03]} e6 {[%emt 0:00:06]} 2. d4 {[%emt 0:00:03]} d5 {[%emt 0:00:04]} 3. Nd2 {[%emt 0:00:03]} Nf6 {[%emt 0:00:05]} 4. e5 {[%emt 0:00:03]} Nfd7 {[%emt 0:00:05]} 5. Bd3 {[%emt 0:00:03]} c5 {[%emt 0:00:06]} 6. c3 {[%emt 0:00:05]} Nc6 {[%emt 0:00:04]} 7. Ne2 {[%emt 0:00:04]} cxd4 {[%emt 0:00:08]} 8. cxd4 {[%emt 0:00:05]} f6 {[%emt 0:00:06]} 9. exf6 {[%emt 0:00:19]} Nxf6 {[%emt 0:00:06]} 10. Nf3 {[%emt 0:00:13]} Bd6 {[%emt 0:00:09]} 11. O-O {[%emt 0:00:11]} Qc7 {[%emt 0:00:04]} 12. h3 {[%emt 0:00:28]} O-O {[%emt 0:00:08]} 13. Be3 {[%emt 0:00:13]} Bd7 {[%emt 0:00:15][%cal Bc8d7,Bd7e8,Be8h5][%mdl 32]} 14. Nc3 {[%emt 0:00:20]} a6 {[%emt 0:00:26]} 15. Rc1 {[%emt 0:00:05]} Be8 {[%emt 0:00:39] C06: French Tarrasch: 3...Nf6 4 e5 Nfd7 5 Bd3 main lines.} 16. Ng5 {[%emt 0:00:05]} Qe7 {[%emt 0:01:27]} 17. f4 {[%emt 0:00:11]} h6 {[%emt 0:05:27] The position is equal.} 18. Nf3 {[%emt 0:00:30]} Nh5 {[%emt 0:10:07]} 19. Ne5 {[%emt 0:01:12]} Ng3 $132 {[%emt 0:02:57][%mdl 2048] Black has counterplay} 20. Rf2 {[%emt 0:02:34]} Bh5 {[%emt 0:15:36] [#] Inhibits Qg4.} 21. Nxc6 $146 {[%emt 0:11:37]} ({Predecessor:} 21. Qc2 Rac8 22. a3 Bb8 23. Qd2 Ba7 24. Bb1 Nxe5 25. fxe5 Qh4 26. Qd3 Ne4 27. Rxf8+ Kxf8 {1-0 (67) Batista,R (2154)-Ichimura G Barbosa,L (1957) Sao Paulo 2017}) 21... bxc6 {[%emt 0:02:33]} 22. Qe1 {[%emt 0:00:22]} c5 $2 {[%emt 0:32:29] This move loses the game for Black.} (22... Qf6 $11 {and Black is okay.}) 23. dxc5 $18 {[%emt 0:03:52]} Bxc5 {[%emt 0:01:29] [#]} (23... Bc7 {keeps fighting.} 24. Bd4 Qf7) 24. Nxd5 $1 {[%emt 0:09:04][%mdl 512]} exd5 {[%emt 0:01:03]} 25. Bxc5 {[%emt 0:01:14]} Qxe1+ {[%emt 0:01:05]} 26. Rxe1 {[%emt 0:00:09]} Rfe8 {[%emt 0:01:29]} 27. Re5 {[%emt 0:01:16]} Rac8 {[%emt 0:04:57]} 28. b4 {[%emt 0:03:16]} ({Weaker is} 28. Rxd5 Bf7 29. Re5 (29. Bc4 Bxd5 30. Bxd5+ Kh8 $17) 29... Rxe5 30. fxe5 Rxc5 $11) 28... Ne4 $2 {[%emt 0:06:43]} (28... a5 29. Rxd5 axb4) 29. Rxh5 {[%emt 0:02:32] White is clearly winning.} Nxf2 {[%emt 0:00:54]} 30. Kxf2 {[%emt 0:00:13]} a5 {[%emt 0:03:40]} 31. Rxd5 {[%emt 0:01:56]} axb4 {[%emt 0:01:55]} 32. Bxb4 {[%emt 0:00:11]} Rb8 {[%emt 0:02:31]} 33. a3 {[%emt 0:03:40][%cal Ba2a3,Ba3a4,Ba4a5,Ba5a6][%mdl 32]} Rb6 34. Rd7 Rc6 {[%emt 0:02:57] Against Bc4+} 35. a4 {[%emt 0:02:27]} Rec8 {[%emt 0:03:10]} 36. Bd6 {[%emt 0:02:31]} Rc3 {[%emt 0:01:23]} 37. Be5 {[%emt 0:00:28]} Rb3 {[%emt 0:00:51]} 38. Rxg7+ {[%emt 0:01:18]} Kf8 {[%emt 0:00:07]} 39. Rd7 {[%emt 0:03:22] [#] Threatens to win with Bg6.} h5 {[%emt 0:01:16]} 40. a5 {[%emt 0:02:08] Hoping for a6.} Ke8 {[%emt 0:01:07]} 41. Rd5 {[%emt 0:31:04]} Ke7 {[%emt 0:01:57]} 42. a6 {[%emt 0:00:00]} Ke6 {[%emt 0:00:59]} 43. Rd6+ {[%emt 0:00:00]} Ke7 {[%emt 0:00:13]} 44. Be4 {[%emt 0:00:00]} Ra3 {[%emt 0:00:29]} 45. Rh6 {[%emt 0:00:00] Intending Bd6+ and mate.} Ra2+ {[%emt 0:00:20]} 46. Kg3 {[%emt 0:00:00] Weighted Error Value: White=0.16 (very precise) /Black=0.57} 1-0

[Event "Mitropa Cup Women 2022"]
[Site "Corte"]
[Date "2022.05.04"]
[Round "5.1"]
[White "Zimina, Olga"]
[Black "Cvitan, Ena"]
[Result "1-0"]
[ECO "D02"]
[WhiteElo "2345"]
[BlackElo "2238"]
[Annotator "TA"]
[PlyCount "99"]
[EventDate "2022.04.30"]
[EventType "team-tourn"]
[EventCountry "FRA"]
[SourceTitle "playchess.com"]
[Source "ChessBase"]
[SourceQuality "1"]
[TimeControl "40/5400+30:1800+30"]

{[%evp 9,99,24,24,18,21,21,31,17,21,9,12,0,8,19,21,0,9,-17,0,-8,46,46,41,15,9,18,9,25,26,0,37,39,33,18,14,22,58,45,54,41,44,-20,-29,-21,-16,-84,-80,-129,-118,-125,-97,-141,0,0,53,46,14,14,14,17,26,12,67,55,60,16,16,16,24,10,25,10,100,100,129,134,131,100,130,121,202,202,233,226,312,304,4216,2372,6154,5454,5514,4950]} 1. d4 {[%emt 0:00:05]} d5 {[%emt 0:00:21]} 2. Nf3 {[%emt 0:00:05]} e6 {[%emt 0:00:16]} 3. g3 {[%emt 0:00:12]} b5 {[%emt 0:00:53][%cal Bb7b5,Bb5b4][%mdl 32] [#]} 4. e3 $146 {[%emt 0:02:52]} ({Predecessor:} 4. Bg2 Bb7 5. O-O Nf6 6. a4 b4 7. c4 bxc3 8. Nxc3 Na6 9. a5 Be7 10. Bg5 O-O 11. Bxf6 gxf6 12. Ne1 Rb8 13. Nd3 c5 {½-½ (31) Fridman,D (2627)-Bartel,M (2636) Germany 2021}) 4... a6 {[%emt 0:03:21]} 5. a4 {[%emt 0:00:14]} b4 {[%emt 0:00:35]} 6. Bg2 {[%emt 0:01:11] D02: 1 d4 d5 2 Nf3 sidelines, including 2...Nf6 3 g3 and 2...Nf6 3 Bf4.} a5 {[%emt 0:02:49]} 7. O-O {[%emt 0:00:39]} Nf6 {[%emt 0:00:31]} 8. Ne5 {[%emt 0:02:45] White is slightly better.} Be7 {[%emt 0:06:07]} 9. c4 {[%emt 0:01:10]} bxc3 {[%emt 0:00:29]} 10. Nxc3 {[%emt 0:09:49]} Ba6 {[%emt 0:02:26][%cal Bc8a6,Ba6c4,Bc4d5][%mdl 32]} 11. Re1 {[%emt 0:00:07]} O-O {[%emt 0:00:34]} 12. e4 {[%emt 0:00:19]} c6 {[%emt 0:00:14]} 13. h4 {[%emt 0:14:53]} Nfd7 {[%emt 0:11:15]} 14. Ng4 {[%emt 0:07:34]} dxe4 {[%emt 0:13:46]} ({Better is} 14... Ra7 $11) 15. Nxe4 $14 {[%emt 0:02:33]} Bc4 $1 {[%emt 0:10:54]} ({Not} 15... f5 16. Ng5 Bxg5 17. Bxg5 $16) 16. Qc2 {[%emt 0:07:38]} (16. Ng5 $5 {[%cal Rd1c2]} Bd5 17. Qd3 Bxg5 18. Bxg5 $14) 16... Bd5 {[%emt 0:00:12]} 17. Ng5 {[%emt 0:00:29]} Bxg5 {[%emt 0:04:13]} 18. Bxg5 {[%emt 0:02:16]} Qb6 {[%emt 0:00:18]} 19. Be4 {[%emt 0:02:36] A strong pair of Bishops.} f5 {[%emt 0:09:07]} 20. Bxd5 {[%emt 0:00:26]} cxd5 {[%emt 0:00:41]} 21. Ne5 {[%emt 0:00:44]} Nxe5 {[%emt 0:04:14]} 22. Rxe5 {[%emt 0:01:00]} Re8 {[%emt 0:03:13]} 23. Rae1 {[%emt 0:04:03][%cal Oc2f5]} Nd7 {[%emt 0:00:44]} 24. R5e3 {[%emt 0:00:33]} Nf8 {[%emt 0:00:59]} 25. Bf4 {[%emt 0:09:18]} (25. Rd3 $14) 25... Qxd4 $11 {[%emt 0:07:18]} 26. Be5 {[%emt 0:03:04]} Qb4 {[%emt 0:00:01]} 27. Bc3 {[%emt 0:08:14] [#]} (27. Qc7 $11 Re7 28. Qc6) 27... Qg4 $1 $17 {[%emt 0:05:38] Strongly threatening ...d4.} 28. Qd2 {[%emt 0:00:24] Prevents d4.} (28. Rd3 $142) 28... Qxa4 {[%emt 0:00:54]} 29. Rd3 {[%emt 0:01:43]} Qb5 {[%emt 0:02:55]} 30. Rf3 {[%emt 0:03:12]} d4 {[%emt 0:03:40]} ({Black should play} 30... Rac8 $17 31. Rd3 h6) 31. Qxd4 $11 {[%emt 0:00:25][%csl Gc3][%cal Rd4g7]} e5 {[%emt 0:00:12]} (31... Re7 $11) 32. Rxe5 $14 {[%emt 0:00:35]} Qxe5 {[%emt 0:03:02]} 33. Qxe5 {[%emt 0:00:07]} Rxe5 {[%emt 0:00:02]} 34. Bxe5 {[%emt 0:00:07][%mdl 4096] Endgame KRB-KRN} a4 {[%emt 0:00:44]} 35. Bd6 {[%emt 0:07:53]} Rd8 {[%emt 0:02:50]} (35... g6 $11) 36. Ba3 $1 {[%emt 0:00:33] White is more active.} g6 {[%emt 0:00:10]} 37. Rf4 {[%emt 0:00:53] Prevents Rd4.} Ra8 $1 {[%emt 0:00:13]} 38. Rb4 {[%emt 0:00:17]} Ne6 {[%emt 0:01:54]} 39. Rb7 {[%emt 0:00:07]} Nd4 {[%emt 0:01:14]} 40. Bb4 {[%emt 0:01:56]} Nc2 {[%emt 0:00:46]} (40... f4 $11 {keeps the balance.}) 41. Bc3 $16 {[%emt 0:30:57]} a3 {[%emt 0:30:16] And now ...a2 would win.} 42. Rg7+ {[%emt 0:01:12]} Kf8 {[%emt 0:00:06] aiming for ...a2.} 43. Rxh7 {[%emt 0:00:14]} Ra6 {[%emt 0:00:00]} 44. bxa3 {[%emt 0:00:00]} Nxa3 {[%emt 0:00:00] [#]} (44... Kg8 $16 {is a better defense.} 45. Rg7+ Kf8) 45. h5 $1 $18 {[%emt 0:00:00] Threatens to win with h6.} Nb5 {[%emt 0:00:00]} 46. Be5 {[%emt 0:00:00] Hoping for h6.} Re6 {[%emt 0:00:00]} 47. f4 {[%emt 0:00:00] h6 is the strong threat.} Nd6 $2 {[%emt 0:00:00]} (47... gxh5 48. Rxh5 Na3 49. Rxf5+ Ke7) 48. h6 {[%emt 0:00:00] White is clearly winning.} g5 {[%emt 0:00:00]} 49. Rd7 {[%emt 0:00:00]} Rxh6 {[%emt 0:00:00]} 50. Rxd6 {[%emt 0:00:00] Weighted Error Value: White=0.14 (very precise) /Black=0.21 (precise)} 1-0

[Event "Mitropa Cup Women 2022"]
[Site "Corte"]
[Date "2022.05.04"]
[Round "5.1"]
[White "Gaal, Zsoka"]
[Black "Schulze, Lara"]
[Result "1-0"]
[ECO "A07"]
[WhiteElo "2319"]
[BlackElo "2309"]
[Annotator "TA"]
[PlyCount "101"]
[EventDate "2022.04.30"]
[EventType "team-tourn"]
[EventCountry "FRA"]
[SourceTitle "playchess.com"]
[Source "ChessBase"]
[SourceQuality "1"]
[WhiteTeam "Hungary"]
[BlackTeam "Germany"]
[WhiteTeamCountry "HUN"]
[BlackTeamCountry "GER"]
[TimeControl "40/5400+30:1800+30"]

{[%evp 9,101,13,18,29,28,12,7,0,0,0,0,0,0,-17,-27,-25,-6,-22,-18,-18,25,24,17,17,39,0,74,48,83,68,64,60,61,71,109,89,86,106,112,73,75,56,47,64,55,14,15,28,20,14,42,35,61,45,58,46,56,48,137,134,83,72,243,240,405,405,416,416,851,851,848,845,1535,1724,1755,1479,1430,1070,2359,2036,6204,5181,29967,29971,29978,29979,29979,29980,29980,29981,29983,29984,29985,29979]} 1. Nf3 {[%emt 0:00:11]} d5 {[%emt 0:00:03]} 2. g3 {[%emt 0:00:38]} Nf6 {[%emt 0:00:18]} 3. Bg2 {[%emt 0:03:07]} c6 {[%emt 0:00:43]} 4. O-O {[%emt 0:01:17]} Bg4 {[%emt 0:00:10]} 5. h3 {[%emt 0:05:58]} Bh5 {[%emt 0:01:20]} 6. c4 {[%emt 0:01:08] A07: Réti Opening: New York and Capablanca Systems.} e6 {[%emt 0:00:28]} 7. Qb3 {[%emt 0:07:33]} Qb6 {[%emt 0:02:37]} 8. d3 {[%emt 0:01:02] The position is equal.} Nbd7 {[%emt 0:08:41]} 9. cxd5 {[%emt 0:04:25]} Qxb3 {[%emt 0:03:13]} 10. axb3 {[%emt 0:00:11]} Nxd5 {[%emt 0:11:32] [#]} 11. g4 $146 {[%emt 0:09:13]} ({Predecessor:} 11. d4 Be7 12. Na3 f5 13. Nc4 Bxf3 14. Bxf3 N7f6 15. Bd2 a6 16. h4 O-O 17. Kg2 {½-½ (46) Voll,A (2558)-Grigoryev,V (2480) ICCF email 2018}) 11... Bg6 {[%emt 0:00:17]} 12. Nc3 {[%emt 0:01:29]} Nb4 {[%emt 0:09:11]} 13. Bf4 {[%emt 0:04:40]} f6 {[%emt 0:05:49]} 14. d4 {[%emt 0:15:25]} Bc2 {[%emt 0:13:22]} 15. Nd2 {[%emt 0:01:10]} e5 {[%emt 0:10:04]} 16. dxe5 {[%emt 0:01:27]} fxe5 {[%emt 0:00:07]} 17. Be3 {[%emt 0:03:25]} Bc5 {[%emt 0:04:06]} (17... a6 $1 $11) 18. Ra4 $36 {[%emt 0:10:50][%mdl 2048] White has some pressure.} a5 {[%emt 0:06:31] [#]} 19. Rfa1 $1 {[%emt 0:03:06] Bxc5 is the strong threat.} Bxe3 {[%emt 0:03:23]} 20. fxe3 {[%emt 0:00:03][%cal Oa4b4]} O-O-O {[%emt 0:04:22]} 21. Rxa5 {[%emt 0:03:20]} Nb6 {[%emt 0:01:20]} 22. Nc4 {[%emt 0:04:18]} (22. Nde4 {keeps more tension.} Kb8 23. Nc5 Rhe8 24. N3a4) 22... Nxc4 {[%emt 0:01:34]} 23. bxc4 {[%emt 0:00:10]} Rhe8 {[%emt 0:01:14]} 24. Ne4 {[%emt 0:05:00][%cal Bc3e4,Be4c5,Bc5d3,Bd3e5,Be5d3][%mdl 32]} Kc7 {[%emt 0:01:59]} 25. Nc5 {[%emt 0:03:17]} Rd1+ {[%emt 0:03:49]} 26. Rxd1 {[%emt 0:00:11]} Bxd1 {[%emt 0:00:02]} 27. Nd3 {[%emt 0:05:28]} Nc2 {[%emt 0:02:40]} 28. Rxe5 {[%emt 0:00:02]} ({Much worse is} 28. Nxe5 Kb6 29. b4 Nxb4 $17) 28... Rxe5 {[%emt 0:00:31]} 29. Nxe5 {[%emt 0:00:01] Hoping for Kf2.} Nxe3 $11 {[%emt 0:00:28][%mdl 4096] Endgame KBN-KBN} (29... Kd6 $5 {[%cal Rd6e5]} 30. Nd3 (30. Nf7+ Ke7 $11) 30... Bxe2 31. c5+ Ke7 $11) 30. Bf3 {[%emt 0:01:48]} Bb3 {[%emt 0:02:08]} 31. c5 {[%emt 0:01:38]} Nd1 $1 {[%emt 0:01:00]} 32. Nd3 {[%emt 0:02:07]} Bc4 {[%emt 0:00:24]} 33. b4 {[%emt 0:02:38]} Nc3 {[%emt 0:02:21]} (33... Kd8 $14) 34. Kf2 $16 {[%emt 0:00:30]} Na2 {[%emt 0:00:38]} (34... h6 $142) 35. Be4 {[%emt 0:00:15]} g6 $2 {[%emt 0:00:29] [#] Loses the game.} (35... h6 $16) 36. Ke3 $1 $18 {[%emt 0:00:25]} Bxd3 $2 {[%emt 0:00:35]} (36... Kd8 {might work better.} 37. Kf4 Ke7) 37. exd3 {[%emt 0:00:01][%cal Be2d3,Bd3d4][%mdl 32]} ({Less strong is} 37. Kxd3 Nxb4+ 38. Kd4 Na6 $16) 37... Nxb4 {[%emt 0:00:16] KB-KN} 38. Kf4 {[%emt 0:00:47]} Kd7 {[%emt 0:01:02]} (38... Na6 $142) 39. Kg5 {[%emt 0:00:28] Strongly threatening Kh6.} Na6 {[%emt 0:00:26]} 40. d4 {[%emt 0:00:06]} Nc7 {[%emt 0:00:20]} 41. Kh6 {[%emt 0:06:05]} Ne6 {[%emt 0:07:39]} 42. h4 {[%emt 0:02:26]} Ke7 {[%emt 0:07:07]} 43. g5 {[%emt 0:09:45][%cal Bg4g5,Bg5g6,Bg6g7][%mdl 32]} Nxd4 {[%emt 0:06:06]} 44. Kxh7 {[%emt 0:00:35]} Ne6 {[%emt 0:05:34]} 45. Bxg6 {[%emt 0:02:12] Threatening mate with Bf5.} Nxc5 {[%emt 0:00:43]} 46. Bf5 {[%emt 0:00:25] White mates.} Na6 {[%emt 0:00:12]} 47. g6 {[%emt 0:01:03]} Nc7 {[%emt 0:00:05]} 48. g7 {[%emt 0:00:29]} Nd5 {[%emt 0:01:30]} 49. Kg6 {[%emt 0:03:32]} Nf4+ {[%emt 0:01:09]} 50. Kh6 {[%emt 0:00:22]} Kf7 {[%emt 0:00:33]} 51. Kh7 {[%emt 0:00:24] Weighted Error Value: White=0.06 (flawless) /Black=0.40} 1-0

[Event "Mitropa Cup Women 2022"]
[Site "Corte"]
[Date "2022.05.04"]
[Round "5.2"]
[White "Schoene, Maria"]
[Black "Terbe, Zsuzsanna"]
[Result "0-1"]
[ECO "C84"]
[WhiteElo "2218"]
[BlackElo "2194"]
[Annotator "TA"]
[PlyCount "66"]
[EventDate "2022.04.30"]
[EventType "team-tourn"]
[EventCountry "FRA"]
[SourceTitle "playchess.com"]
[Source "ChessBase"]
[SourceQuality "1"]
[WhiteTeam "Germany"]
[BlackTeam "Hungary"]
[WhiteTeamCountry "GER"]
[BlackTeamCountry "HUN"]
[TimeControl "40/5400+30:1800+30"]

{[%evp 18,66,28,22,8,6,9,4,25,0,0,0,0,0,0,0,0,0,0,-14,0,-82,-60,-75,-65,-96,-101,-98,-87,-96,-83,-83,-81,-85,-87,-85,-83,-85,-80,-120,-29,-58,-58,-65,-67,-134,-50,-741,-721,-674,-652]} 1. e4 {[%emt 0:00:03]} e5 {[%emt 0:00:06]} 2. Nf3 {[%emt 0:00:08]} Nc6 {[%emt 0:00:05]} 3. Bb5 {[%emt 0:00:07]} a6 {[%emt 0:00:08]} 4. Ba4 {[%emt 0:00:09]} Nf6 {[%emt 0:00:18]} 5. O-O {[%emt 0:00:12]} Be7 {[%emt 0:00:18]} 6. d3 {[%emt 0:00:13]} b5 {[%emt 0:00:47]} 7. Bb3 {[%emt 0:00:05]} d6 {[%emt 0:00:09]} 8. a3 {[%emt 0:00:26]} O-O {[%emt 0:00:56]} 9. Nc3 {[%emt 0:00:24]} Bb7 {[%emt 0:06:30]} 10. Bg5 {[%emt 0:10:05]} h6 {[%emt 0:01:24] C84: Closed Ruy Lopez: Unusual White 6th moves.} 11. Bxf6 {[%emt 0:01:41]} Bxf6 {[%emt 0:00:36]} 12. Nd5 {[%emt 0:00:29]} g6 {[%emt 0:04:33] [#] The position is equal.} 13. g3 $146 {[%emt 0:07:02]} ({Predecessor:} 13. Nxf6+ Qxf6 14. Bd5 Nd8 15. Bxb7 Nxb7 16. a4 Kg7 17. b4 Qe6 18. Qd2 Rfc8 19. d4 exd4 20. Qxd4+ {½-½ (48) Ni,S (2445)-Shen,Y (2454) China 2019}) 13... Bg7 {[%emt 0:02:57]} 14. h4 {[%emt 0:02:00]} Ne7 {[%emt 0:10:51]} 15. Nxe7+ {[%emt 0:02:51]} Qxe7 {[%emt 0:00:11]} 16. h5 {[%emt 0:00:09] aiming for hxg6.} gxh5 {[%emt 0:11:18]} 17. Nh4 {[%emt 0:01:38]} Qg5 {[%emt 0:00:27] Against Ng6} 18. Kh2 {[%emt 0:15:11]} Bc8 {[%emt 0:06:38]} 19. f3 {[%emt 0:02:48]} (19. Rh1 $11) 19... Kh8 {[%emt 0:03:39]} 20. Qe2 {[%emt 0:09:15]} c6 {[%emt 0:09:15]} 21. Rg1 {[%emt 0:05:39]} f5 {[%emt 0:04:07]} 22. exf5 {[%emt 0:04:25]} Bxf5 {[%emt 0:00:20]} 23. Nxf5 {[%emt 0:00:47]} Rxf5 {[%emt 0:01:25]} 24. Be6 {[%emt 0:00:35]} Rf6 {[%emt 0:06:42]} 25. Bh3 {[%emt 0:00:18]} Raf8 {[%emt 0:03:56]} 26. Raf1 {[%emt 0:00:46]} d5 {[%emt 0:06:41]} 27. b3 {[%emt 0:20:32]} R6f7 {[%emt 0:03:57]} 28. c4 {[%emt 0:00:40]} h4 {[%emt 0:03:04]} ({Better is} 28... Qe7 $17 {Threatens to win with ...h4.} 29. f4 h4 30. gxh4 e4) 29. cxd5 {[%emt 0:00:54]} cxd5 {[%emt 0:00:59]} 30. Be6 $1 {[%emt 0:00:03][%csl LRd5,LRf7]} Rc7 $36 {[%emt 0:03:55][%mdl 2048] Black is pushing.} 31. Bxd5 {[%emt 0:00:24] [#]} (31. f4 $1 $15 hxg3+ 32. Rxg3) 31... Rfc8 {[%emt 0:00:13] Black is more active.} (31... e4 $1 $17 32. Bxe4 hxg3+ 33. Kg2 Qf4) 32. f4 $2 {[%emt 0:06:51][%mdl 8192]} (32. Qe4 $15) 32... exf4 $19 {[%emt 0:00:50]} 33. gxf4 {[%emt 0:00:08]} Qxd5 {[%emt 0:00:12] Weighted Error Value: White=0.43/Black=0.17 (very precise)} 0-1